[Event "Early-Titled-Tuesday-Blitz-May-28-2024"]
[Site "Chess.com"]
[Date "2024.05.28"]
[Round "8"]
[White "Flawless_Fighter"]
[Black "Milop27"]
[Result "0-1"]
[WhiteElo "2675"]
[BlackElo "2513"]
[TimeControl "180+1"]
[EndTime "9:30:45 PDT"]
[Termination "Milop27 won by checkmate"]

1. Nf3 {[%clk 0:03:00.9]} 1... c5 {[%clk 0:02:59.3]} 2. e4 {[%clk 0:02:54.5]}
2... e6 {[%clk 0:02:58.1]} 3. c3 {[%clk 0:02:53.8]} 3... Nf6 {[%clk 0:02:57.2]}
4. e5 {[%clk 0:02:53.7]} 4... Nd5 {[%clk 0:02:57.5]} 5. d4 {[%clk 0:02:54.3]}
5... cxd4 {[%clk 0:02:58.1]} 6. cxd4 {[%clk 0:02:55.2]} 6... d6 {[%clk
0:02:58.5]} 7. Bc4 {[%clk 0:02:55.9]} 7... Nb6 {[%clk 0:02:58.1]} 8. Bd3 {[%clk
0:02:55.2]} 8... Bd7 {[%clk 0:02:53.7]} 9. O-O {[%clk 0:02:53.9]} 9... Bc6
{[%clk 0:02:53.5]} 10. Nc3 {[%clk 0:02:54.5]} 10... Be7 {[%clk 0:02:50.5]} 11.
Qe2 {[%clk 0:02:54.3]} 11... O-O {[%clk 0:02:45.9]} 12. Bf4 {[%clk 0:02:54.3]}
12... dxe5 {[%clk 0:02:42]} 13. dxe5 {[%clk 0:02:50.3]} 13... Nd5 {[%clk
0:02:37.8]} 14. Nxd5 {[%clk 0:02:49.5]} 14... Bxd5 {[%clk 0:02:36.1]} 15. Rfd1
{[%clk 0:02:46.8]} 15... Nd7 {[%clk 0:01:59.4]} 16. Rac1 {[%clk 0:02:26.1]}
16... Rc8 {[%clk 0:01:58.1]} 17. Rxc8 {[%clk 0:02:23.9]} 17... Qxc8 {[%clk
0:01:58.1]} 18. h4 {[%clk 0:02:24.2]} 18... Rd8 {[%clk 0:01:47.2]} 19. Ng5
{[%clk 0:02:16.9]} 19... Nf8 {[%clk 0:01:39.1]} 20. Bb1 {[%clk 0:02:01.2]} 20...
Qc6 {[%clk 0:01:23.5]} 21. f3 {[%clk 0:01:47.7]} 21... h6 {[%clk 0:01:21.8]} 22.
Ne4 {[%clk 0:01:45.7]} 22... Ng6 {[%clk 0:01:13.7]} 23. Bg3 {[%clk 0:01:42.3]}
23... Bxh4 {[%clk 0:01:09.2]} 24. Bxh4 {[%clk 0:01:36]} 24... Nxh4 {[%clk
0:01:09.1]} 25. Nd6 {[%clk 0:01:34.5]} 25... f5 {[%clk 0:00:49.1]} 26. Qd3
{[%clk 0:01:21.3]} 26... Ng6 {[%clk 0:00:42.9]} 27. Qe3 {[%clk 0:00:53.2]} 27...
Nxe5 {[%clk 0:00:35.6]} 28. Nxf5 {[%clk 0:00:44.8]} 28... Nxf3+ {[%clk
0:00:28.4]} 29. gxf3 {[%clk 0:00:29.8]} 29... exf5 {[%clk 0:00:28]} 30. Bxf5
{[%clk 0:00:30.2]} 30... Rd6 {[%clk 0:00:11.8]} 31. Qe7 {[%clk 0:00:15.3]} 31...
Qc5+ {[%clk 0:00:08.6]} 32. Kh2 {[%clk 0:00:14.5]} 32... Qf2+ {[%clk 0:00:07]}
33. Kh3 {[%clk 0:00:13.8]} 33... Qxf3+ {[%clk 0:00:06.7]} 34. Kh2 {[%clk
0:00:13.5]} 34... Qf2+ {[%clk 0:00:05.5]} 35. Kh3 {[%clk 0:00:13]} 35... Bg2+
{[%clk 0:00:04.8]} 36. Kg4 {[%clk 0:00:12]} 36... Qf3+ {[%clk 0:00:04.3]} 37.
Kh4 {[%clk 0:00:12.6]} 37... g5+ {[%clk 0:00:02]} 38. Qxg5+ {[%clk 0:00:11.2]}
38... hxg5+ {[%clk 0:00:02]} 39. Kxg5 {[%clk 0:00:12.1]} 39... Qxd1 {[%clk
0:00:01.9]} 40. Bg6 {[%clk 0:00:11.9]} 40... Rxg6+ {[%clk 0:00:01.8]} 41. Kxg6
{[%clk 0:00:12.2]} 41... Qc2+ {[%clk 0:00:02.2]} 42. Kf6 {[%clk 0:00:13.1]}
42... Qxb2+ {[%clk 0:00:02.4]} 43. Ke7 {[%clk 0:00:14]} 43... Qxa2 {[%clk
0:00:02.5]} 44. Kd8 {[%clk 0:00:14.9]} 44... b5 {[%clk 0:00:02.6]} 45. Kc8
{[%clk 0:00:15.8]} 45... b4 {[%clk 0:00:03]} 46. Kb8 {[%clk 0:00:16.2]} 46... b3
{[%clk 0:00:03.3]} 47. Kc8 {[%clk 0:00:16.1]} 47... b2 {[%clk 0:00:03.6]} 48.
Kc7 {[%clk 0:00:17]} 48... b1=Q {[%clk 0:00:03.2]} 49. Kd6 {[%clk 0:00:17.9]}
49... Qd2+ {[%clk 0:00:02.9]} 50. Ke7 {[%clk 0:00:18.5]} 50... Qe4+ {[%clk
0:00:02.6]} 51. Kf6 {[%clk 0:00:19.4]} 51... Qd6+ {[%clk 0:00:02.5]} 52. Kg5
{[%clk 0:00:20.1]} 52... Qdg6# {[%clk 0:00:02.7]} 0-1

[Event "Early-Titled-Tuesday-Blitz-May-28-2024"]
[Site "Chess.com"]
[Date "2024.05.28"]
[Round "8"]
[White "DvaHrasta"]
[Black "GlavkonVVS"]
[Result "1-0"]
[WhiteElo "2451"]
[BlackElo "2567"]
[TimeControl "180+1"]
[EndTime "9:30:47 PDT"]
[Termination "DvaHrasta won by resignation"]

1. c4 {[%clk 0:03:00.9]} 1... Nf6 {[%clk 0:02:59.7]} 2. g3 {[%clk 0:03:01]} 2...
c5 {[%clk 0:03:00.2]} 3. Bg2 {[%clk 0:03:01]} 3... Nc6 {[%clk 0:03:00.8]} 4. Nc3
{[%clk 0:03:01.1]} 4... g6 {[%clk 0:03:01.4]} 5. Nf3 {[%clk 0:03:01.2]} 5... Bg7
{[%clk 0:03:01.6]} 6. O-O {[%clk 0:03:01.4]} 6... O-O {[%clk 0:03:01.8]} 7. d4
{[%clk 0:03:01.5]} 7... d6 {[%clk 0:03:01.9]} 8. dxc5 {[%clk 0:03:01.4]} 8...
dxc5 {[%clk 0:03:01.1]} 9. Bf4 {[%clk 0:03:01.9]} 9... Be6 {[%clk 0:02:58.6]}
10. Qa4 {[%clk 0:03:01.7]} 10... Qa5 {[%clk 0:02:56.9]} 11. Nd2 {[%clk
0:03:01.6]} 11... Qb6 {[%clk 0:02:35.8]} 12. Qb5 {[%clk 0:03:00.6]} 12... Nh5
{[%clk 0:02:15.8]} 13. Be3 {[%clk 0:02:49.7]} 13... Bd4 {[%clk 0:02:10.6]} 14.
Na4 {[%clk 0:02:40.9]} 14... Qxb5 {[%clk 0:02:07.3]} 15. cxb5 {[%clk 0:02:41]}
15... Bxe3 {[%clk 0:02:07.7]} 16. fxe3 {[%clk 0:02:32.7]} 16... Nb4 {[%clk
0:02:02.6]} 17. Nxc5 {[%clk 0:02:28.3]} 17... Bd5 {[%clk 0:02:01.6]} 18. e4
{[%clk 0:02:21.7]} 18... Rac8 {[%clk 0:01:51.8]} 19. Nd3 {[%clk 0:02:07.5]}
19... Bxa2 {[%clk 0:01:47.3]} 20. Nxb4 {[%clk 0:02:04.9]} 20... Be6 {[%clk
0:01:43.2]} 21. Rxa7 {[%clk 0:02:02.4]} 21... Rfd8 {[%clk 0:01:41.7]} 22. Nd5
{[%clk 0:01:48.9]} 22... Rc2 {[%clk 0:01:36]} 23. Rd1 {[%clk 0:01:47.3]} 23...
Rxb2 {[%clk 0:01:31.4]} 24. Rxb7 {[%clk 0:01:46.6]} 24... Kf8 {[%clk 0:01:25]}
25. Bf3 {[%clk 0:01:41.7]} 25... Nf6 {[%clk 0:01:20.7]} 26. Nc4 {[%clk
0:01:29.2]} 26... Rb4 {[%clk 0:01:15]} 27. Nce3 {[%clk 0:01:17]} 27... Nxe4
{[%clk 0:01:09.9]} 28. Bxe4 {[%clk 0:01:15.6]} 28... Rxe4 {[%clk 0:01:10]} 29.
Rd3 {[%clk 0:01:06.7]} 29... Ra8 {[%clk 0:00:39.8]} 30. Kf2 {[%clk 0:01:01.3]}
30... Ra2 {[%clk 0:00:38.8]} 31. Nf4 {[%clk 0:00:57]} 31... Bf5 {[%clk
0:00:20.4]} 32. Nxf5 {[%clk 0:00:53.6]} 32... gxf5 {[%clk 0:00:20.5]} 33. Re3
{[%clk 0:00:51.2]} 33... Rxe3 {[%clk 0:00:17.9]} 34. Kxe3 {[%clk 0:00:50.5]}
34... Rb2 {[%clk 0:00:18.3]} 35. Nd5 {[%clk 0:00:47.9]} 35... e6 {[%clk
0:00:18.2]} 36. Rb8+ {[%clk 0:00:46.2]} 36... Kg7 {[%clk 0:00:17.8]} 37. Nc3
{[%clk 0:00:41]} 37... Kf6 {[%clk 0:00:16.9]} 38. Ra8 {[%clk 0:00:38]} 38... Rb3
{[%clk 0:00:16.3]} 39. Kd3 {[%clk 0:00:36]} 39... e5 {[%clk 0:00:16]} 40. Ra6+
{[%clk 0:00:35.2]} 40... Kg5 {[%clk 0:00:13.5]} 41. Ra1 {[%clk 0:00:32.4]} 41...
e4+ {[%clk 0:00:11.6]} 42. Kc4 {[%clk 0:00:32.3]} 42... Rb2 {[%clk 0:00:11.8]}
43. Rb1 {[%clk 0:00:32.3]} 43... Rd2 {[%clk 0:00:11]} 44. b6 {[%clk 0:00:32.3]}
44... Rd8 {[%clk 0:00:11.1]} 45. b7 {[%clk 0:00:32.5]} 45... Rb8 {[%clk
0:00:11.6]} 46. Kc5 {[%clk 0:00:31.9]} 46... Kg4 {[%clk 0:00:09.9]} 47. Kc6
{[%clk 0:00:31.8]} 47... h5 {[%clk 0:00:07.9]} 48. Kc7 {[%clk 0:00:31.2]} 48...
Re8 {[%clk 0:00:07.8]} 49. b8=Q {[%clk 0:00:29.4]} 49... Rxb8 {[%clk 0:00:07.9]}
50. Kxb8 {[%clk 0:00:29.1]} 50... Kh3 {[%clk 0:00:08.4]} 51. e3 {[%clk
0:00:28.6]} 51... Kxh2 {[%clk 0:00:08.4]} 52. Rf1 {[%clk 0:00:26.5]} 52... Kxg3
{[%clk 0:00:08.5]} 53. Rxf5 {[%clk 0:00:26.6]} 53... h4 {[%clk 0:00:09]} 54.
Nxe4+ {[%clk 0:00:26.8]} 54... Kg2 {[%clk 0:00:09.2]} 55. Rxf7 {[%clk
0:00:26.7]} 55... h3 {[%clk 0:00:09.3]} 56. Rg7+ {[%clk 0:00:25.9]} 56... Kh2
{[%clk 0:00:07.2]} 57. Kc7 {[%clk 0:00:24.3]} 57... Kh1 {[%clk 0:00:06.9]} 58.
Nf2+ {[%clk 0:00:24.4]} 58... Kh2 {[%clk 0:00:07]} 59. Nxh3 {[%clk 0:00:24.6]}
59... Kxh3 {[%clk 0:00:06.9]} 60. e4 {[%clk 0:00:25]} 1-0

[Event "Early-Titled-Tuesday-Blitz-May-28-2024"]
[Site "Chess.com"]
[Date "2024.05.28"]
[Round "8"]
[White "aghasiyevkamal"]
[Black "David_ATM"]
[Result "1-0"]
[WhiteElo "2618"]
[BlackElo "2438"]
[TimeControl "180+1"]
[EndTime "9:30:47 PDT"]
[Termination "aghasiyevkamal won by checkmate"]

1. d4 {[%clk 0:02:55]} 1... d5 {[%clk 0:03:00.1]} 2. c4 {[%clk 0:02:54.6]} 2...
c6 {[%clk 0:03:01]} 3. Nc3 {[%clk 0:02:52.9]} 3... Nf6 {[%clk 0:03:01.5]} 4. e3
{[%clk 0:02:50.7]} 4... Bf5 {[%clk 0:03:01.7]} 5. cxd5 {[%clk 0:02:50.1]} 5...
Nxd5 {[%clk 0:03:02.6]} 6. Nf3 {[%clk 0:02:44.6]} 6... e6 {[%clk 0:03:02.7]} 7.
Be2 {[%clk 0:02:40.1]} 7... Be7 {[%clk 0:03:02.4]} 8. O-O {[%clk 0:02:34.6]}
8... h6 {[%clk 0:03:02.3]} 9. Bd2 {[%clk 0:02:32.6]} 9... Bh7 {[%clk 0:03:02.1]}
10. Na4 {[%clk 0:02:14.7]} 10... Nd7 {[%clk 0:03:00.8]} 11. Rc1 {[%clk
0:02:12.4]} 11... O-O {[%clk 0:03:00.6]} 12. Re1 {[%clk 0:02:09.7]} 12... N7b6
{[%clk 0:03:00.1]} 13. Nc5 {[%clk 0:02:08.3]} 13... Qc7 {[%clk 0:02:59.4]} 14.
Bf1 {[%clk 0:01:59.5]} 14... Nd7 {[%clk 0:02:58.9]} 15. b4 {[%clk 0:01:46.2]}
15... b6 {[%clk 0:02:47.2]} 16. Nxd7 {[%clk 0:01:25.3]} 16... Qxd7 {[%clk
0:02:48.1]} 17. Ne5 {[%clk 0:01:25.4]} 17... Qe8 {[%clk 0:02:43.4]} 18. Nxc6
{[%clk 0:01:22]} 18... a6 {[%clk 0:02:15.4]} 19. a4 {[%clk 0:01:11.8]} 19... Bd6
{[%clk 0:02:07.5]} 20. g3 {[%clk 0:01:05.1]} 20... Be4 {[%clk 0:01:56.3]} 21. f3
{[%clk 0:01:03.6]} 21... Bh7 {[%clk 0:01:54.7]} 22. e4 {[%clk 0:01:01]} 22...
Ne7 {[%clk 0:01:50.8]} 23. b5 {[%clk 0:00:57.1]} 23... Nxc6 {[%clk 0:01:35.1]}
24. Rxc6 {[%clk 0:00:55.7]} 24... Qd7 {[%clk 0:01:20.8]} 25. Qb3 {[%clk
0:00:48]} 25... a5 {[%clk 0:01:08.6]} 26. Rec1 {[%clk 0:00:43.5]} 26... Bb4
{[%clk 0:01:02.4]} 27. Be3 {[%clk 0:00:38.1]} 27... Rac8 {[%clk 0:00:55.2]} 28.
Qc4 {[%clk 0:00:32.1]} 28... Rxc6 {[%clk 0:00:51.5]} 29. bxc6 {[%clk 0:00:32]}
29... Qc7 {[%clk 0:00:49.4]} 30. Bf4 {[%clk 0:00:31]} 30... Bd6 {[%clk
0:00:47.4]} 31. Bxd6 {[%clk 0:00:29.9]} 31... Qxd6 {[%clk 0:00:48.3]} 32. d5
{[%clk 0:00:28.3]} 32... Rc8 {[%clk 0:00:39.5]} 33. Qd4 {[%clk 0:00:26.2]} 33...
h5 {[%clk 0:00:16.9]} 34. Kf2 {[%clk 0:00:15.6]} 34... h4 {[%clk 0:00:17.3]} 35.
Bb5 {[%clk 0:00:13.9]} 35... Qa3 {[%clk 0:00:15.3]} 36. Qc3 {[%clk 0:00:12.4]}
36... Qd6 {[%clk 0:00:12.9]} 37. Rd1 {[%clk 0:00:08.5]} 37... Bg6 {[%clk
0:00:08.5]} 38. e5 {[%clk 0:00:08.3]} 38... Qd8 {[%clk 0:00:06.1]} 39. d6 {[%clk
0:00:08.1]} 39... hxg3+ {[%clk 0:00:02.7]} 40. hxg3 {[%clk 0:00:08.1]} 40... f6
{[%clk 0:00:03.3]} 41. c7 {[%clk 0:00:06]} 41... Qf8 {[%clk 0:00:03.8]} 42. d7
{[%clk 0:00:05.7]} 42... fxe5 {[%clk 0:00:04.3]} 43. dxc8=Q {[%clk 0:00:05.2]}
43... Qxc8 {[%clk 0:00:05.2]} 44. Rd8+ {[%clk 0:00:05.2]} 44... Kh7 {[%clk
0:00:05.3]} 45. Rxc8 {[%clk 0:00:05.4]} 45... e4 {[%clk 0:00:05.1]} 46. Qe5
{[%clk 0:00:05.2]} 46... e3+ {[%clk 0:00:05.1]} 47. Kxe3 {[%clk 0:00:05.3]}
47... Bf5 {[%clk 0:00:05.5]} 48. Re8 {[%clk 0:00:05.4]} 48... Kg6 {[%clk
0:00:06.3]} 49. Re7 {[%clk 0:00:05.6]} 49... Kh5 {[%clk 0:00:06]} 50. Qxg7
{[%clk 0:00:05.5]} 50... Bg6 {[%clk 0:00:06.5]} 51. Rxe6 {[%clk 0:00:05.2]}
51... Bf7 {[%clk 0:00:05.1]} 52. Rh6# {[%clk 0:00:05.1]} 1-0

[Event "Early-Titled-Tuesday-Blitz-May-28-2024"]
[Site "Chess.com"]
[Date "2024.05.28"]
[Round "8"]
[White "Nekoo04"]
[Black "tusplingher"]
[Result "1/2-1/2"]
[WhiteElo "2429"]
[BlackElo "2578"]
[TimeControl "180+1"]
[EndTime "9:30:47 PDT"]
[Termination "Game drawn - insufficient material"]

1. d4 {[%clk 0:02:39.2]} 1... Nf6 {[%clk 0:02:58.8]} 2. c4 {[%clk 0:02:39.7]}
2... c5 {[%clk 0:02:58]} 3. d5 {[%clk 0:02:39.8]} 3... b5 {[%clk 0:02:58.3]} 4.
cxb5 {[%clk 0:02:39.9]} 4... a6 {[%clk 0:02:56.9]} 5. e3 {[%clk 0:02:37]} 5...
axb5 {[%clk 0:02:56.4]} 6. Bxb5 {[%clk 0:02:37.9]} 6... Qa5+ {[%clk 0:02:56.6]}
7. Nc3 {[%clk 0:02:37.9]} 7... Bb7 {[%clk 0:02:57]} 8. Bd2 {[%clk 0:02:30.9]}
8... Qb6 {[%clk 0:02:56.7]} 9. Qb3 {[%clk 0:02:18.1]} 9... e6 {[%clk 0:02:51.7]}
10. e4 {[%clk 0:02:09.2]} 10... Nxe4 {[%clk 0:02:46]} 11. Nxe4 {[%clk
0:01:32.2]} 11... Bxd5 {[%clk 0:02:43.6]} 12. Qd3 {[%clk 0:01:28.2]} 12... f5
{[%clk 0:02:35]} 13. Ng5 {[%clk 0:00:35.8]} 13... Bxg2 {[%clk 0:02:27]} 14.
O-O-O {[%clk 0:00:35.5]} 14... Bxh1 {[%clk 0:02:03.4]} 15. f3 {[%clk 0:00:32.1]}
15... Be7 {[%clk 0:01:52.4]} 16. Nxe6 {[%clk 0:00:24.6]} 16... Qxe6 {[%clk
0:01:31.5]} 17. Re1 {[%clk 0:00:24.3]} 17... Qxa2 {[%clk 0:01:10.4]} 18. Bc4
{[%clk 0:00:12.3]} 18... Qa1+ {[%clk 0:01:03.8]} 19. Kc2 {[%clk 0:00:12.4]}
19... Qxe1 {[%clk 0:01:01.7]} 20. Bxe1 {[%clk 0:00:11.7]} 20... Nc6 {[%clk
0:01:02.3]} 21. Qd5 {[%clk 0:00:05.8]} 21... Rf8 {[%clk 0:00:52.3]} 22. Bc3
{[%clk 0:00:04.3]} 22... Bf6 {[%clk 0:00:49.3]} 23. Bb5 {[%clk 0:00:02.4]} 23...
Rc8 {[%clk 0:00:44.6]} 24. Nh3 {[%clk 0:00:01.9]} 24... Nd4+ {[%clk 0:00:17.2]}
25. Bxd4 {[%clk 0:00:01.9]} 25... cxd4+ {[%clk 0:00:17.5]} 26. Kd3 {[%clk
0:00:02.8]} 26... Rc7 {[%clk 0:00:13.3]} 27. Nf4 {[%clk 0:00:02.1]} 27... Ke7
{[%clk 0:00:11.4]} 28. Kd2 {[%clk 0:00:01.3]} 28... Rfc8 {[%clk 0:00:09]} 29.
Qxf5 {[%clk 0:00:01.1]} 29... Rc2+ {[%clk 0:00:07.1]} 30. Qxc2 {[%clk
0:00:01.2]} 30... Rxc2+ {[%clk 0:00:06.8]} 31. Kxc2 {[%clk 0:00:02.1]} 31...
Bxf3 {[%clk 0:00:07.1]} 32. Kd3 {[%clk 0:00:01.6]} 32... Kd6 {[%clk 0:00:07.1]}
33. Bc4 {[%clk 0:00:01.5]} 33... Bc6 {[%clk 0:00:07.2]} 34. b4 {[%clk
0:00:01.7]} 34... Be5 {[%clk 0:00:07.4]} 35. Ne2 {[%clk 0:00:01.6]} 35... Bxh2
{[%clk 0:00:07.6]} 36. b5 {[%clk 0:00:02.2]} 36... Bd5 {[%clk 0:00:07.5]} 37.
Nxd4 {[%clk 0:00:02.9]} 37... Bxc4+ {[%clk 0:00:07.6]} 38. Kxc4 {[%clk
0:00:03.8]} 38... Bg1 {[%clk 0:00:06.5]} 39. Nf5+ {[%clk 0:00:04.1]} 39... Kc7
{[%clk 0:00:06.3]} 40. Nxg7 {[%clk 0:00:05]} 40... Bh2 {[%clk 0:00:05.2]} 41.
Kd5 {[%clk 0:00:05.3]} 41... Bf4 {[%clk 0:00:04.8]} 42. Ne8+ {[%clk 0:00:05.3]}
42... Kb6 {[%clk 0:00:04.3]} 43. Nf6 {[%clk 0:00:06.2]} 43... h6 {[%clk
0:00:03.9]} 44. Nxd7+ {[%clk 0:00:06.2]} 44... Kxb5 {[%clk 0:00:04.5]} 45. Ke4
{[%clk 0:00:06.6]} 45... Bg5 {[%clk 0:00:04.4]} 46. Ne5 {[%clk 0:00:06.9]} 46...
Kc5 {[%clk 0:00:04.5]} 47. Nf7 {[%clk 0:00:07]} 47... Bc1 {[%clk 0:00:04.1]} 48.
Kf5 {[%clk 0:00:07.4]} 48... Kd5 {[%clk 0:00:04.5]} 49. Kg6 {[%clk 0:00:07]}
49... Ke6 {[%clk 0:00:05.2]} 50. Nxh6 {[%clk 0:00:07.5]} 1/2-1/2

[Event "Early-Titled-Tuesday-Blitz-May-28-2024"]
[Site "Chess.com"]
[Date "2024.05.28"]
[Round "8"]
[White "dinushkipremanath"]
[Black "aljado"]
[Result "1/2-1/2"]
[WhiteElo "2315"]
[BlackElo "2170"]
[TimeControl "180+1"]
[EndTime "9:30:48 PDT"]
[Termination "Game drawn by stalemate"]

1. d4 {[%clk 0:03:00.9]} 1... Nf6 {[%clk 0:02:58.7]} 2. Nf3 {[%clk 0:03:01.7]}
2... g6 {[%clk 0:02:58.2]} 3. Bf4 {[%clk 0:03:02]} 3... Bg7 {[%clk 0:02:57.9]}
4. Nc3 {[%clk 0:03:02.1]} 4... d6 {[%clk 0:02:56.1]} 5. e4 {[%clk 0:03:02.2]}
5... Nbd7 {[%clk 0:02:54.7]} 6. Bd3 {[%clk 0:03:02.7]} 6... Nh5 {[%clk
0:02:53.8]} 7. Qd2 {[%clk 0:03:01.2]} 7... Nxf4 {[%clk 0:02:53.2]} 8. Qxf4
{[%clk 0:03:02.1]} 8... O-O {[%clk 0:02:51.6]} 9. Ne2 {[%clk 0:02:59.1]} 9... e5
{[%clk 0:02:51]} 10. dxe5 {[%clk 0:02:57.4]} 10... Nxe5 {[%clk 0:02:50.7]} 11.
O-O-O {[%clk 0:02:52.8]} 11... Ng4 {[%clk 0:02:41.6]} 12. Qg3 {[%clk 0:02:49.3]}
12... Qf6 {[%clk 0:02:37]} 13. Nc3 {[%clk 0:02:44.3]} 13... c6 {[%clk
0:02:26.5]} 14. h3 {[%clk 0:02:41.6]} 14... Ne5 {[%clk 0:02:24.2]} 15. Nxe5
{[%clk 0:02:40.2]} 15... Qxe5 {[%clk 0:02:23.6]} 16. f4 {[%clk 0:02:39.2]} 16...
Qa5 {[%clk 0:02:21.1]} 17. Bc4 {[%clk 0:02:10.5]} 17... b5 {[%clk 0:02:08.4]}
18. Bb3 {[%clk 0:02:08.4]} 18... c5 {[%clk 0:01:37.4]} 19. Bd5 {[%clk
0:01:49.4]} 19... Be6 {[%clk 0:01:37.4]} 20. Bxe6 {[%clk 0:01:44.2]} 20... fxe6
{[%clk 0:01:35.1]} 21. Rxd6 {[%clk 0:01:44.8]} 21... b4 {[%clk 0:01:30.1]} 22.
Nb1 {[%clk 0:01:41.8]} 22... Qxa2 {[%clk 0:01:26.9]} 23. e5 {[%clk 0:01:41.8]}
23... c4 {[%clk 0:01:16.7]} 24. Qe3 {[%clk 0:01:17.7]} 24... Rac8 {[%clk
0:01:09.2]} 25. Rd7 {[%clk 0:01:13.7]} 25... c3 {[%clk 0:01:04.8]} 26. bxc3
{[%clk 0:01:13]} 26... bxc3 {[%clk 0:00:55.9]} 27. Nxc3 {[%clk 0:01:12.9]} 27...
Qa1+ {[%clk 0:00:42.5]} 28. Nb1 {[%clk 0:01:05.2]} 28... Rb8 {[%clk 0:00:36.6]}
29. Qxa7 {[%clk 0:00:45.5]} 29... Rxb1+ {[%clk 0:00:28.4]} 30. Kd2 {[%clk
0:00:45.6]} 30... Qxa7 {[%clk 0:00:25]} 31. Rxa7 {[%clk 0:00:43.4]} 31... Rxh1
{[%clk 0:00:24.4]} 32. Re7 {[%clk 0:00:43]} 32... Rg1 {[%clk 0:00:24.1]} 33.
Rxe6 {[%clk 0:00:40.2]} 33... Rxg2+ {[%clk 0:00:24.1]} 34. Kd3 {[%clk
0:00:39.5]} 34... Rxf4 {[%clk 0:00:23.6]} 35. Re7 {[%clk 0:00:37.5]} 35... Rf8
{[%clk 0:00:23.1]} 36. c4 {[%clk 0:00:36.1]} 36... Rg3+ {[%clk 0:00:23.2]} 37.
Ke4 {[%clk 0:00:36.1]} 37... Rxh3 {[%clk 0:00:23.3]} 38. c5 {[%clk 0:00:35.8]}
38... Rh4+ {[%clk 0:00:23.1]} 39. Kd5 {[%clk 0:00:36.1]} 39... Rh5 {[%clk
0:00:23.2]} 40. c6 {[%clk 0:00:35.9]} 40... Rhf5 {[%clk 0:00:22.8]} 41. c7
{[%clk 0:00:33.9]} 41... h5 {[%clk 0:00:21.9]} 42. Kd6 {[%clk 0:00:33]} 42... h4
{[%clk 0:00:21.1]} 43. e6 {[%clk 0:00:29.5]} 43... Rf1 {[%clk 0:00:18.4]} 44.
Kd7 {[%clk 0:00:26.6]} 44... Rd1+ {[%clk 0:00:17.5]} 45. Kc6 {[%clk 0:00:26.7]}
45... Rc1+ {[%clk 0:00:17]} 46. Kd6 {[%clk 0:00:26.1]} 46... h3 {[%clk
0:00:16.2]} 47. Rd7 {[%clk 0:00:25.4]} 47... h2 {[%clk 0:00:14.8]} 48. e7 {[%clk
0:00:24.5]} 48... Re8 {[%clk 0:00:10.6]} 49. Rd8 {[%clk 0:00:24.5]} 49... Kf7
{[%clk 0:00:09.9]} 50. Kd7 {[%clk 0:00:23.8]} 50... Rxe7+ {[%clk 0:00:04.9]} 51.
Kc8 {[%clk 0:00:22.8]} 51... Rexc7+ {[%clk 0:00:04.7]} 52. Kb8 {[%clk
0:00:22.5]} 52... h1=Q {[%clk 0:00:03.5]} 53. Rf8+ {[%clk 0:00:21.9]} 53... Kxf8
{[%clk 0:00:02.5]} 1/2-1/2

[Event "Early-Titled-Tuesday-Blitz-May-28-2024"]
[Site "Chess.com"]
[Date "2024.05.28"]
[Round "8"]
[White "nabukatnezarr"]
[Black "Kirill_Klukin"]
[Result "0-1"]
[WhiteElo "2664"]
[BlackElo "2880"]
[TimeControl "180+1"]
[EndTime "9:30:54 PDT"]
[Termination "Kirill_Klukin won on time"]

1. b3 {[%clk 0:03:00.9]} 1... Nf6 {[%clk 0:02:58.9]} 2. Bb2 {[%clk 0:03:01.8]}
2... d5 {[%clk 0:02:59.2]} 3. Nf3 {[%clk 0:02:51.5]} 3... Bf5 {[%clk 0:02:59.3]}
4. Bxf6 {[%clk 0:02:41.6]} 4... gxf6 {[%clk 0:02:57.4]} 5. d4 {[%clk 0:02:42]}
5... e6 {[%clk 0:02:57.5]} 6. e3 {[%clk 0:02:42.4]} 6... Nd7 {[%clk 0:02:57.9]}
7. Nbd2 {[%clk 0:02:42.8]} 7... c6 {[%clk 0:02:53.9]} 8. g3 {[%clk 0:02:42.2]}
8... Bd6 {[%clk 0:02:51.8]} 9. Bg2 {[%clk 0:02:41.9]} 9... Qe7 {[%clk
0:02:52.3]} 10. O-O {[%clk 0:02:41.7]} 10... a5 {[%clk 0:02:52.8]} 11. c4 {[%clk
0:02:41.9]} 11... a4 {[%clk 0:02:50.7]} 12. Nh4 {[%clk 0:02:40.1]} 12... Bd3
{[%clk 0:02:44]} 13. Re1 {[%clk 0:02:38.6]} 13... Bb4 {[%clk 0:02:32.9]} 14. Bf1
{[%clk 0:01:56.3]} 14... Bg6 {[%clk 0:02:16.2]} 15. Nxg6 {[%clk 0:01:47]} 15...
hxg6 {[%clk 0:02:17.1]} 16. Qc2 {[%clk 0:01:42.6]} 16... f5 {[%clk 0:02:05.1]}
17. Rec1 {[%clk 0:01:36.6]} 17... Bxd2 {[%clk 0:02:04.8]} 18. Qxd2 {[%clk
0:01:36.2]} 18... Kf8 {[%clk 0:02:04.7]} 19. Rab1 {[%clk 0:01:32.5]} 19... a3
{[%clk 0:01:50.1]} 20. b4 {[%clk 0:01:32.7]} 20... Kg7 {[%clk 0:01:47.4]} 21. b5
{[%clk 0:01:33.3]} 21... Nf6 {[%clk 0:01:43.8]} 22. Qb4 {[%clk 0:01:17.7]} 22...
Qd8 {[%clk 0:01:31.1]} 23. bxc6 {[%clk 0:01:16.5]} 23... bxc6 {[%clk 0:01:31.4]}
24. Qb6 {[%clk 0:01:16.6]} 24... Ne4 {[%clk 0:01:01]} 25. Qxd8 {[%clk
0:01:15.1]} 25... Rhxd8 {[%clk 0:00:59.3]} 26. Rb6 {[%clk 0:00:53.4]} 26... Rdb8
{[%clk 0:00:28.8]} 27. c5 {[%clk 0:00:53.4]} 27... Kf8 {[%clk 0:00:20]} 28. Bd3
{[%clk 0:00:26.3]} 28... Nf6 {[%clk 0:00:04.6]} 29. Rc3 {[%clk 0:00:25.9]} 29...
Rxb6 {[%clk 0:00:03]} 30. cxb6 {[%clk 0:00:26.8]} 30... Nd7 {[%clk 0:00:02.6]}
31. b7 {[%clk 0:00:09.7]} 31... Ra7 {[%clk 0:00:02.8]} 32. Rxc6 {[%clk
0:00:04.9]} 32... Rxb7 {[%clk 0:00:03.3]} 33. Ra6 {[%clk 0:00:04.7]} 33... Ke7
{[%clk 0:00:03.5]} 34. Rxa3 {[%clk 0:00:04.4]} 34... Rb2 {[%clk 0:00:02.3]} 35.
Kg2 {[%clk 0:00:03.8]} 35... Kd6 {[%clk 0:00:02.6]} 36. Ra6+ {[%clk 0:00:03.6]}
36... Kc7 {[%clk 0:00:03.1]} 37. Ra7+ {[%clk 0:00:03.7]} 37... Kd6 {[%clk
0:00:03.8]} 38. a4 {[%clk 0:00:03.8]} 38... f6 {[%clk 0:00:02]} 39. Bb5 {[%clk
0:00:04.1]} 39... Nb6 {[%clk 0:00:02.5]} 40. Ra6 {[%clk 0:00:04.7]} 40... Kc7
{[%clk 0:00:02.6]} 41. Ra7+ {[%clk 0:00:05.1]} 41... Kb8 {[%clk 0:00:02.3]} 42.
Rg7 {[%clk 0:00:05.5]} 42... Nc4 {[%clk 0:00:01.6]} 43. Bxc4 {[%clk 0:00:04.2]}
43... dxc4 {[%clk 0:00:02.5]} 44. Kf1 {[%clk 0:00:01.4]} 44... c3 {[%clk
0:00:02.8]} 45. Rg8+ {[%clk 0:00:01.4]} 45... Kb7 {[%clk 0:00:03.3]} 46. Rg7+
{[%clk 0:00:02.3]} 46... Kb6 {[%clk 0:00:02.3]} 47. Re7 {[%clk 0:00:02]} 47...
Rb1+ {[%clk 0:00:02.5]} 48. Ke2 {[%clk 0:00:02.1]} 48... c2 {[%clk 0:00:03.2]}
49. Rxe6+ {[%clk 0:00:02.7]} 49... Ka5 {[%clk 0:00:03.7]} 0-1